Cogmind - Beta 15 @@@ ROGUE MODE // 2025.07.14 @ 20:41:12 Player: Sirius Result: Destroyed by QI-P9O(R) with Subdweller Laser Performance ------------- Evolutions (0) 0 Regions Visited (2) 400 Robots Destroyed (13) 65 Value Destroyed (205) 205 Prototype IDs (2) 40 Alien Tech Used (0) 0 Bonus (0) 0 TOTAL SCORE: 710 Bonus ------- None Cogmind --------- Core Integrity 0/250 Matter 274/300 Energy 42/100 System Corruption 1% Temperature Cool (6) Movement Rolling (100) Location -10/Subcaves Parts ------- > --- POWER (1) -------- (None) > --- PROPULSION (2) --- Compact Wheel > --- UTILITY (2) ------ Medium Storage Unit Seismic Detector > --- WEAPON (2) ------- (None) > --- INVENTORY (10) --- Medium Battery (150) Weight Redist. System Seismic Detector Targeting Computer Tractor Beam Peak State ------------ > --- POWER ------------ Light Ion Engine > --- PROPULSION ------- Aluminum Leg Aluminum Leg > --- UTILITY ---------- Medium Storage Unit Seismic Detector > --- WEAPON ----------- Medium Laser Assault Rifle > --- INVENTORY -------- Ion Engine Light Treads Compact Wheel Compact Wheel Small Storage Unit Medium Battery Weight Redist. System EM Pulse Gun Mining Laser [Rating: 8] Favorites ----------- Power Ion Engine Engine Ion Engine Propulsion Aluminum Leg Leg Aluminum Leg Wheel Compact Wheel Utility Medium Storage Unit Device Seismic Detector Storage Medium Storage Unit Weapon Medium Laser Energy Gun Medium Laser Ballistic Gun Light Assault Rifle Special Weapon Mining Laser Build | -11 -10 -10 ------- Run | Yrd Mat Sub Slots Evolved . | . . . Power . | . . . Propulsion . | . . . Utility . | . . . Weapon . | . . . Parts Attached 14 | 6 4 4 Power 3 | 1 1 1 Engine 3 | 1 1 1 Core . | . . . Reactor . | . . . Propulsion 4 | 2 . 2 Treads . | . . . Leg 2 | 2 . . Wheel 2 | . . 2 Hover . | . . . Flight . | . . . Utility 3 | 1 2 . Device 1 | . 1 . Storage 2 | 1 1 . Processor . | . . . Hackware . | . . . Protection . | . . . Artifact . | . . . Weapon 4 | 2 1 1 Energy Gun 1 | 1 . . Energy Cannon . | . . . Ballistic Gun 2 | 1 1 . Ballistic Cannon . | . . . Launcher . | . . . Special Weapon 1 | . . 1 Impact Weapon . | . . . Slashing Weapon . | . . . Piercing Weapon . | . . . Special Melee Weapon . | . . . Unidentified Prototypes . | . . . Parts Lost 9 | . 1 8 Power 3 | . 1 2 Propulsion 2 | . . 2 Utility . | . . . Weapon 4 | . . 4 Highest Loss Streak 5 | . 1 5 To Critical Strikes 1 | . . 1 Average Backups 8 | 3 9 8 Power . | . . . Propulsion 1 | 1 2 1 Utility 3 | . 4 5 Weapon 1 | . 1 1 Tool/Special . | . . . Unused Backups 8 | 1 2 5 Power . | . . . Propulsion 2 | 1 1 . Utility 5 | . . 5 Weapon 1 | . 1 . Tool/Special . | . . . Average Slot Usage (%) 96 | . 96 92 Engine 12 | . 13 8 Leg 24 | . 28 14 Wheel 2 | . . 12 Device 12 | . 11 14 Storage 14 | . 14 14 Energy Gun 14 | . 14 14 Ballistic Gun 14 | . 14 14 Peak Build Rating 8 | 6 8 8 Average Rating 7 | 4 7 6 On Entrance 4 | . 6 8 Naked Turns . | . . . Heaviest Build 19 | 12 19 19 Greatest Support 32 | 20 20 32 Greatest Overweight (x) . | . . . Average Overweight (x) . | . . . Largest Inventory Capacity 10 | 8 10 10 Average Capacity 9 | 6 9 10 Most Carried 10 | 5 10 10 Average Carried 8 | 3 9 8 Final Capacity 10 | 8 10 10 Final Carried 10 | 5 10 5 Class Distribution -------------------- 100% | Mutant Dominant Class ---------------- Mutant | -10/Materials Mutant | -10/Subcaves Resources | -11 -10 -10 ----------- Run | Yrd Mat Sub Matter Collected 381 | 260 118 3 Remotely . | . . . Salvage Created 286 | . 262 24 Parts 27 | . 23 4 Haulers Intercepted 1 | . 1 . Recyclers Shooed . | . . . Parts Field Recycled . | . . . Retrieved Matter . | . . . Parts Self-Destructed 12 | . . 12 Prevented . | . . . Kills | -11 -10 -10 ------- Run | Yrd Mat Sub Combat Hostiles Destroyed 10 | . 8 2 Guns 10 | . 8 2 Classes Destroyed 5 | . 5 . Hauler 1 | . 1 . Operator 1 | . 1 . Watcher 1 | . 1 . Swarmer 8 | . 6 2 Grunt 2 | . 2 . Best Kill Streak 3 | . 3 2 Combat Bots Only 3 | . 3 2 Max Kills in Single Turn 2 | . 2 1 Gunslinging 1 | . 1 . Exploded . | . . . Melee . | . . . Uniques/NPCs Destroyed . | . . . Combat | -11 -10 -10 -------- Run | Yrd Mat Sub Hostile Shots Fired 106 | . 24 82 Missed 44 | . 5 39 Hits 62 | . 19 43 Projectile 62 | . 19 43 Critical Strikes 2 | . . 2 Damage Taken 1023 | . 219 804 Core 265 | . 51 214 Absorbed by Shields . | . . . Core Remaining (%) 100 | 100 . . Volleys Fired 43 | . 35 8 Largest 2 | . 2 2 Hottest 100 | . 70 100 Shots Fired 85 | . 70 15 Gun 84 | . 70 14 Cannon . | . . . Launcher . | . . . Special 1 | . . 1 Kinetic 42 | . 35 7 Thermal 43 | . 35 8 Explosive . | . . . Electromagnetic . | . . . Robot Hit Streak 12 | . 8 12 Robot Miss Streak 8 | . 8 1 Penetration Max . | . . . Secondary Targets 4 | . 3 1 Max Gunslinging Chain 1 | . 1 1 Shots Hit Robots 48 | . 35 13 Core Hits 23 | . 17 6 Critical Kills . | . . . Critical Parts Destroyed . | . . . Critical Strikes 3 | . 3 . Burn 3 | . 3 . Melee Attacks . | . . . Impact . | . . . Slashing . | . . . Piercing . | . . . Sneak Attacks . | . . . Combat Hostiles . | . . . Follow-up Attacks . | . . . Damage Inflicted 583 | . 422 161 Guns 556 | . 419 137 Cannons . | . . . Explosions 3 | . 3 . Melee . | . . . Ramming . | . . . Kinetic 278 | . 230 48 Thermal 302 | . 189 113 Explosive . | . . . Electromagnetic 3 | . 3 . Impact . | . . . Slashing . | . . . Piercing . | . . . Highest Corruption 1 | . 1 1 Average Corruption 1 | . 1 1 Corruption Purged . | . . . Corruption Blocked . | . . . Effects 4 | . 3 1 Message Errors 1 | . 1 . Matter Fused 1 | . . 1 Energy Discharges 1 | . 1 . Data Loss (minor) 1 | . 1 . Overload Shots . | . . . Overflow Damage . | . . . Projectiles . | . . . Explosions . | . . . Melee . | . . . Knockbacks . | . . . Impact . | . . . Kinetic . | . . . Secondary . | . . . Self-Inflicted Damage 31 | . 31 . Shots 1 | . 1 . Rammed . | . . . Targets Rammed . | . . . Kicked . | . . . Crushed . | . . . Highest Temperature 251 | . 88 251 Average Temperature 32 | . 26 114 Received Heat Transfer 523 | . 57 466 Siege Activations . | . . . Martial Activations . | . . . Shielding Activations . | . . . Robots Disrupted . | . . . Combat Hostiles . | . . . Robots Corrupted . | . . . Combat Hostiles . | . . . Parts Fried . | . . . Impact Corruptions . | . . . Robots Melted . | . . . Combat Hostiles . | . . . Parts Melted 2 | . 2 . Heat Transferred 1086 | . 777 309 Parts Sabotaged . | . . . Parts Stolen . | . . . Parts Stripped . | . . . Power Chain Reactions . | . . . Alert | -11 -10 -10 ------- Run | Yrd Mat Sub Maximum Alert Level . | . . . Low Security (%) 100 | 100 100 . Level 1 . | . . . Level 2 . | . . . Level 3 . | . . . Level 4 . | . . . Level 5 . | . . . High Security . | . . . Max Security . | . . . Peak Influence 120 | . 120 . Initial . | . . . Average 46 | . 52 . Influence Increases 449 | . 244 205 Destroy 0b10 Robot/C 200 | . 160 40 Destroy 0b10 Robot/NC 15 | . 15 . Destroy Leader 34 | . 34 . Successful Hack 19 | . 19 . Disable Machine 15 | . 15 . Destroy Structure 1 | . 1 . Lose Combat Pursuer 165 | . . 165 Influence Decreases 407 | . 229 178 Entered New Map 8 | . . 8 Time Decay 309 | . 219 90 Lost Part 90 | . 10 80 Squads Dispatched . | . . . Investigation . | . . . Extermination . | . . . Reinforcement . | . . . Assault . | . . . Garrison . | . . . Intercept . | . . . Searches Triggered . | . . . Construction Impeded . | . . . Haulers Reinforced . | . . . Active Scanning Responses . | . . . Cargo Convoy Interrupts . | . . . Stealth | -11 -10 -10 --------- Run | Yrd Mat Sub Distress Signals 1 | . 1 . Communications Jammed . | . . . Distress Signals . | . . . Times Spotted 31 | . 14 17 Peak Tracking Total 5 | . 5 5 Tactical Retreats 3 | . . 3 Traps | -11 -10 -10 ------- Run | Yrd Mat Sub Traps Triggered . | . . . Indirectly . | . . . Trap Hack Attempts . | . . . Triggered . | . . . Disarmed . | . . . Reprogrammed . | . . . Reused . | . . . Traps Extracted . | . . . Installed . | . . . Triggered . | . . . Machines | -11 -10 -10 ---------- Run | Yrd Mat Sub Machines Disabled 1 | . 1 . Max in Single Turn 1 | . 1 . Machines Repaired . | . . . Machines Dismantled . | . . . Machines Sabotaged . | . . . Overloaded Fab Kills . | . . . Hacking | -11 -10 -10 --------- Run | Yrd Mat Sub Machines Accessed 4 | . 4 . Terminals 3 | . 3 . Fabricators . | . . . Repair Stations . | . . . Recycling Units 1 | . 1 . Scanalyzers . | . . . Garrison Access . | . . . Total Hacks 10 | . 10 . Successful 7 | . 7 . Failed 3 | . 3 . Catastrophic 2 | . 2 . Database Lockouts . | . . . Manual 1 | . 1 . Terminals 9 | . 9 . Fabricators . | . . . Repair Stations . | . . . Recycling Units 1 | . 1 . Scanalyzers . | . . . Garrison Access . | . . . Terminal Hacks 6 | . 6 . Prototype ID Bank 1 | . 1 . Emergency Access Points 1 | . 1 . Recycling Unit Index 1 | . 1 . Locate Traps 2 | . 2 . Registered Prototypes 1 | . 1 . Fabricator Hacks . | . . . Repair Station Hacks . | . . . Recycling Unit Hacks 1 | . 1 . Retrieve Components 1 | . 1 . Scanalyzer . | . . . Garrison Access Hacks . | . . . Unauthorized Hacks . | . . . Terminals . | . . . Fabricators . | . . . Repair Stations . | . . . Recycling Units . | . . . Scanalyzers . | . . . Garrison Access . | . . . Data Cores Recovered 1 | . 1 . Used . | . . . Hacking Detections 3 | . 3 . Full Trace Events . | . . . Feedback Events . | . . . Feedback Blocked . | . . . Robot Schematics Acquired . | . . . Robots Built . | . . . Authchips . | . . . Time . | . . . Total Robot Build Rating . | . . . Part Schematics Acquired . | . . . Parts Built . | . . . Authchips . | . . . Time . | . . . Total Part Build Rating . | . . . Parts Repaired . | . . . Time . | . . . Parts Recycled . | . . . Recycled Matter . | . . . Retrieved Matter . | . . . Retrieved Components 8 | . 8 . Parts Scanalyzed . | . . . Part Schematics Acquired . | . . . Parts Damaged . | . . . Bothacking | -11 -10 -10 ------------ Run | Yrd Mat Sub Used RIF Installer . | . . . Robots Hacked . | . . . Non-combat . | . . . Combat . | . . . Robot Hacks Applied . | . . . Relay Couplers Released . | . . . Fabnet Peak Effective % . | . . . Robots Rewired . | . . . Allies Hacked . | . . . Hacks Repelled . | . . . Allies | -11 -10 -10 -------- Run | Yrd Mat Sub Total Allies . | . . . Largest Group . | . . . Highest-Rated Group . | . . . Highest-Rated Ally . | . . . Total Orders . | . . . Ally Attacks . | . . . Total Damage . | . . . Kills . | . . . Allies Corrupted . | . . . Allies Melted . | . . . Intel | -11 -10 -10 ------- Run | Yrd Mat Sub Active Infowar (turns) 711 | . 525 186 Seismic 711 | . 525 186 Robot Analysis Total . | . . . Derelict Logs Recovered 1 | . . 1 Drone Launches . | . . . Drone Recoveries . | . . . Exploration | -11 -10 -10 ------------- Run | Yrd Mat Sub Turns Passed 897 | 78 633 186 Spaces Moved 519 | 53 341 125 Core 5 | 5 . . Treads . | . . . Legs 452 | 48 341 63 Wheels 62 | . . 62 Hover . | . . . Flight . | . . . Fastest Speed 50 | 50 120 100 Average Speed 116 | 113 120 110 Slowest Speed 120 | 120 120 120 Overloaded Moves . | . . . Propulsion Burnouts . | . . . Robots Hopped . | . . . Potential Cave-ins . | . . . Cave-ins Triggered . | . . . Exploration Rate (%) 27 | 4 64 14 Regions Visited 2 Branch Regions 1 Pre-discovered Areas 1 | . . 1 Known Exits Taken . | . . . Unknown Exits Taken 2 | 1 1 . Scrap Searched . | . . . Spaces Dug . | . . . Terrain Destroyed . | . . . Melee . | . . . Projectile . | . . . AOE . | . . . Terrain Rammed . | . . . Walls Destroyed . | . . . Machines Disabled . | . . . Actions | -11 -10 -10 --------- Run | Yrd Mat Sub Total 728 | 71 499 158 Wait 124 | . 105 19 Move 517 | 52 340 125 Hop . | . . . Pick Up 22 | 12 10 . Fast Attach 1 | . 1 . Attach 14 | 6 3 5 Detach 1 | . 1 . Swap . | . . . Drop 6 | 1 4 1 Fire 43 | . 35 8 Melee . | . . . Ram . | . . . Kick . | . . . Crush . | . . . Escape Stasis . | . . . Rewire . | . . . Trap . | . . . Miscellaneous . | . . . Route ------- -11/Scrapyard -10/Materials (discovered 3 exits: [*Mat] / [*Min] / [*Sub]) -10/Subcaves (discovered 1 exit: [*Rec]) History --------- Turn | Location | Event 2 | -11/Scrapyard | Discovered new exit (range 16) 79 | -11/Scrapyard | Entered Materials 306 | -10/Materials | Build established: Mutant 331 | -10/Materials | Discovered new exit (range 14) 593 | -10/Materials | Discovered new exit (range 16) 693 | -10/Materials | Discovered new exit (range 5) 712 | -10/Materials | Entered Subcaves 712 | -10/Subcaves | Discovered new exit (range 14) 713 | -10/Subcaves | Approached by a straggling Scientist 848 | -10/Subcaves | Lost 3 parts (2p1n) 885 | -10/Subcaves | Core integrity fell below 50% 896 | -10/Subcaves | Core integrity fell below 20% 898 | -10/Subcaves | Destroyed by QI-P9O(R) with Subdweller Laser Last Messages --------------- repair. 00736_ Flight Unit fries itself beyond repair. 00736_ Lgt. Ion Engine fries itself beyond repair. 00738_ Subatomizers dissect the Wheel. 00766_ Acquired derelict log, extracted data. World map updated: -8/Materials. 00793_ Critical hit (Meltdown: +280). 00798_ Ion Engine destroyed. 00800_ Aluminum Leg destroyed. 00802_ Dropped Aluminum Leg. 00817_ Lgt. Ion Engine destroyed. 00842_ System corrupted: Matter fused (-5). 00886_ Com. Wheel destroyed. 00887_ Lgt. Assault Rifle destroyed. 00889_ V8-SWP(R) destroyed. 00891_ Med. Laser destroyed. 00892_ Critical hit (Destroy). 00892_ Assault Rifle destroyed. 00895_ Mining Laser destroyed. Map ----- +----------------------------------------------------+ | #??????????????????? ????????????????????????? | | ##???????????????????# ????????????????????????? | | #????????????????????# ????????????????????????? | | ????????????????????? #????????????????????????? | | ?????????????????????# #????????????????????????? | | ?????????????????????# #????????????????????????? | | ????????????????????## ????????????????????????? | | ????????????????????# #????????????????????????? | | ?????###????????????# $ #????????????????????????? | | ????## ##?????###???? #????????????????????????? | | ###?# ##??## #???## #????????????????????????? | | ### ### #???# ##???????????????????????? | | = ## #????## #???????????????????????? | | #????## #####???#####???????????? | | " #??### ## ##### ""###?????????? | | ## ##?## "" #?????????? | | ## ##### # #?????????? | | ## ### # ### # ##?????????? | | ## ### ####?### # ##?????????? | | # ?## ###?????# # #?????????? | | ?## ##???????## # ##?????????? | | # #####?????????# # ##?????????? | | """"" ##### #??#####????### ## #?????????? | | "##""# # #????## ### #???## ##????????? | | "??##### ??????## ## #???# #????????? | | #???????#????????##### @#???# #????????? | | ?????????????????????# RRR##?## ##???????? | | ?????????????????????## R! ### #???????? | | ??????????????????????# #???????? | | ??????????????????????# ##### #???????? | | ??????????????????????## #???# ##???????? | | ???????????????????????# ##??? ####????????? | | ???????????????????????# ####???? #???????????? | | ???????????????????????###??????? ##???????????? | | ????????????????????????????????? ###????????????? | | ?????????????????????????????????#???????????????? | | ?????????????????????????????????????????????????? | | ?????????????????????????????????????????????????? | | ?????????????????????????????????????????????????? | | ?????????????????????????????????????????????????? | | ?????????????????????????????????????????????????? | | ?????????????????????????????????????????????????? | | ?????????????????????????????????????????????????? | | ?????????????????????????????????????????????????? | | ?????????????????????????????????????????????????? | | ?????????????????????????????????????????????????? | | ?????????????????????????????????????????????????? | | ?????????????????????????????????????????????????? | | ?????????????????????????????????????????????????? | | ?????????????????????????????????????????????????? | +----------------------------------------------------+ Best States ------------- Heat Dissipation 25 Energy Generation 10 Energy Capacity 250 Matter Stores 300 Matter Capacity 300 Sight Range 16 Terrain Scan Density 10 Evasion (%) 55 Item Schematics ----------------- None Robot Schematics ------------------ None Fabricated ------------ Nothing Repaired ---------- Nothing Alien Tech Used ----------------- None Achievements -------------- None Challenges ------------ None Game ------ Seed CooledFlightRouter Manual? 0 Play Time 00:15:00 Cumulative 18.5 hours Start 2025.07.14 @ 20:10:26 End 2025.07.14 @ 20:41:12 Sessions 1 Manual Loads 0 Difficulty Rogue Special Mode None Game No. 15 Rogue 15 Adventurer 0 Explorer 0 Win Type - Total 0 Types 0/0/0/0/0/0/0/0/0/0 Lore% 11 Gallery% 17 Achievement% 16 Wizard Run 0 Options --------- Layout 1 ASCII 0 Keyboard 0 Movement Mouse Keybinds 0 Fullscreen 1 Font 24/Smallcaps Map View 50x35 Zoom Use 0% Tactical HUD 1 Map Filters NONE Filters NONE Steam 1 RUN: d0191806-e1ff-4f9a-a606-10ba6779ab6f